fUSD/lending_fUSD_20240615
["ID","MTS","AMOUNT","RATE_DAILY","PERIOD"]
[329531612,1718418656222,-685.95,0.00023013,3]
[329531613,1718418656248,-176.73003798,0.00023013,3]
[329531614,1718418656264,-540.95997698,0.00023013,3]
[329531615,1718418656282,-500.0,0.00023013,3]
[329531616,1718418656315,-356.07193688,0.00023013,3]
[329531617,1718418656328,-500.0,0.00023013,3]
[329531618,1718418656347,-500.0,0.00023013,3]
[329531619,1718418656378,-500.0,0.00023013,3]
[329531620,1718418656401,-500.0,0.00023013,3]
[329531621,1718418656415,-612.99639063,0.00023013,3]
[329531622,1718418656427,-500.0,0.00023013,3]
[329531623,1718418656444,-500.0,0.00023013,3]
[329531624,1718418656472,-500.0,0.00023013,3]
[329531625,1718418656487,-500.0,0.00023013,3]
[329531626,1718418656507,-568.98065645,0.00023013,3]
[329531627,1718418656519,-500.0,0.00023013,3]
[329531628,1718418656530,-500.0,0.00023013,3]
[329531629,1718418656544,-690.91,0.00023013,3]
[329531630,1718418656573,-1023.41,0.00023013,3]
[329531631,1718418656584,-500.0,0.00023013,3]
[329531632,1718418656628,-500.0,0.00023013,3]
[329531633,1718418656681,-500.0,0.00023013,3]
[329531634,1718418656704,-500.0,0.00023013,3]
[329531635,1718418656726,-1528.25,0.00023013,3]
[329531636,1718418656747,-514.84,0.00023013,3]
[329531637,1718418656768,-2136.13,0.00023013,3]
[329531638,1718418656784,-500.0,0.00023013,3]
[329531639,1718418656803,-1218.02,0.00023013,3]
[329531640,1718418656864,-500.0,0.00023013,3]
[329531641,1718418656877,-559.06,0.00023013,3]
[329531642,1718418656894,-500.0,0.00023013,3]
[329531643,1718418656907,-500.0,0.00023013,3]
[329531644,1718418656924,-522.35698898,0.00023013,3]
[329531645,1718418656951,-500.0,0.00023013,3]
[329531646,1718418656967,-500.0,0.00023013,3]
[329531647,1718418656985,-500.0,0.00023013,3]
[329531648,1718418657005,-1699.59,0.00023013,3]
[329531649,1718418657030,-500.0,0.00023013,3]
[329531650,1718418657047,-500.0,0.00023013,3]
[329531651,1718418657059,-500.0,0.00023013,3]
[329531652,1718418657075,-500.0,0.00023013,3]
[329531653,1718418657088,-500.0,0.00023013,3]
[329531654,1718418657102,-1964.58,0.00023013,3]
[329531655,1718418657115,-500.0,0.00023013,3]
[329531656,1718418657130,-237.28126328,0.00023013,3]
[329531657,1718418657148,-500.0,0.00023013,3]
[329531658,1718418657162,-500.0,0.00023013,3]
[329531659,1718418657200,-500.0,0.00023013,3]
[329531660,1718418657212,-500.0,0.00023013,3]
[329531661,1718418657231,-500.0,0.00023013,3]
[329531662,1718418657247,-500.0,0.00023013,3]
[329531663,1718418657261,-556.54888774,0.00023013,3]
[329531664,1718418657276,-500.0,0.00023013,3]
[329531665,1718418657295,-500.0,0.00023013,3]
[329531666,1718418657317,-500.0,0.00023013,3]
[329531667,1718418657339,-500.0,0.00023013,3]
[329531668,1718418657363,-588.06,0.00023013,3]
[329531669,1718418657374,-500.0,0.00023013,3]
[329531670,1718418657402,-500.0,0.00023013,3]
[329531671,1718418657414,-500.0,0.00023013,3]
[329531672,1718418657431,-505.12279132,0.00023013,3]
[329531673,1718418657455,-845.42,0.00023013,3]
[329531674,1718418657469,-500.0,0.00023013,3]
[329531675,1718418657485,-500.0,0.00023013,3]
[329531676,1718418657516,-500.0,0.00023013,3]
[329531677,1718418657529,-500.0,0.00023013,3]
[329531678,1718418657548,-500.0,0.00023013,3]
[329531679,1718418657573,-500.0,0.00023013,3]
[329531680,1718418657596,-500.0,0.00023013,3]
[329531681,1718418657616,-500.0,0.00023013,3]
[329531682,1718418657628,-500.0,0.00023013,3]
[329531683,1718418657652,-500.0,0.00023013,3]
[329531684,1718418657666,-1524.44,0.00023013,3]
[329531685,1718418657685,-500.0,0.00023013,3]
[329531686,1718418657700,-500.0,0.00023013,3]
[329531687,1718418657720,-500.0,0.00023013,3]
[329531688,1718418657732,-397.09266303,0.00023013,3]
[329531689,1718418657757,-500.0,0.00023013,3]
[329531690,1718418657789,-545.14,0.00023013,3]
[329531691,1718418657807,-500.0,0.00023013,3]
[329531692,1718418657820,-1262.4,0.00023013,3]
[329531693,1718418657831,-686.01,0.00023013,3]
[329531694,1718418657842,-500.0,0.00023013,3]
[329531695,1718418657854,-583.54,0.00023013,3]
[329531696,1718418657865,-1611.11,0.00023013,3]
[329531697,1718418657876,-3695.75,0.00023013,3]
[329531698,1718418657898,-690.81,0.00023013,3]
[329531699,1718418657922,-869.82,0.00023013,3]
[329531700,1718418657939,-500.0,0.00023013,3]
[329531701,1718418657965,-500.0,0.00023013,3]
[329531702,1718418657977,-500.0,0.00023013,3]
[329531703,1718418657995,-500.0,0.00023013,3]
[329531704,1718418658008,-500.0,0.00023013,3]
[329531705,1718418658026,-500.0,0.00023013,3]
[329531706,1718418658037,-500.0,0.00023013,3]
[329531707,1718418658050,-500.0,0.00023013,3]
[329531708,1718418658064,-895.37,0.00023013,3]
[329531709,1718418658088,-500.0,0.00023013,3]
[329531710,1718418658108,-500.0,0.00023013,3]
[329531711,1718418658123,-827.21,0.00023013,3]
[329531712,1718418658143,-185.23296269,0.00023013,3]
[329531713,1718418658159,-528.45,0.00023013,3]
[329531714,1718418658171,-500.0,0.00023013,3]
[329531715,1718418658187,-1182.73,0.00023013,3]
[329531716,1718418658202,-4122.91,0.00023013,3]
[329531717,1718418658224,-857.07,0.00023013,3]
[329531718,1718418658239,-500.0,0.00023013,3]
[329531719,1718418658253,-840.7,0.00023013,3]
[329531720,1718418658295,-224.31058188,0.00023187,2]
[329531721,1718418658307,-500.0,0.00023286,3]
[329531722,1718418658330,-500.0,0.00023286,3]
[329531723,1718418658342,-170.28675977,0.00023286,3]
[329531724,1718418658357,-500.0,0.00023286,3]
[329531725,1718418658370,-500.0,0.00023286,3]
[329531726,1718418658396,-187.79441714,0.00023286,3]
[329531727,1718418658410,-525.78649861,0.00023286,3]
[329531728,1718418658421,-500.0,0.00023286,3]
[329531729,1718418658431,-500.0,0.00023286,3]
[329531730,1718418658442,-500.0,0.00023286,3]
[329531731,1718418658453,-500.0,0.00023286,3]
[329531732,1718418658465,-500.0,0.00023286,3]
[329531733,1718418658477,-500.0,0.00023286,3]
[329531734,1718418658498,-500.0,0.00023286,3]
[329531735,1718418658511,-500.0,0.00023286,3]
[329531736,1718418658524,-500.0,0.00023286,3]
[329531737,1718418658542,-500.0,0.00023286,3]
[329531738,1718418658558,-533.02922183,0.00023286,3]
[329531739,1718418658570,-500.0,0.00023286,3]
[329531740,1718418658581,-500.0,0.00023286,3]
[329531741,1718418658597,-500.0,0.00023286,3]
[329531742,1718418658609,-529.89583616,0.00023286,3]
[329531743,1718418658620,-513.91054701,0.00023286,3]
[329531744,1718418658631,-500.0,0.00023286,3]
[329531745,1718418658643,-518.70862021,0.00023286,3]
[329531746,1718418658657,-553.29581243,0.00023286,3]
[329531747,1718418658670,-500.0,0.00023286,3]
[329531748,1718418658681,-500.0,0.00023286,3]
[329531749,1718418658695,-500.0,0.00023286,3]
[329531750,1718418658706,-500.0,0.00023286,3]
[329531751,1718418658717,-500.0,0.00023286,3]
[329531752,1718418658728,-500.0,0.00023286,3]
[329531753,1718418658742,-500.0,0.00023286,3]
[329531754,1718418658754,-505.88684992,0.00023286,3]
[329531755,1718418658765,-595.43736002,0.00023286,3]
[329531756,1718418658777,-506.44169959,0.00023286,3]
[329531757,1718418658793,-323.15684241,0.00023286,3]
[329531758,1718418658816,-500.0,0.00023286,3]
[329531759,1718418658827,-511.95704514,0.00023286,3]
[329531760,1718418658842,-500.0,0.00023286,3]
[329531761,1718418658853,-500.0,0.00023286,3]
[329531762,1718418658866,-500.0,0.00023286,3]
[329531763,1718418658879,-500.0,0.00023287,3]
[329531764,1718418658890,-500.0,0.00023287,3]
[329531765,1718418658901,-500.0,0.00023287,3]
[329531766,1718418658914,-500.0,0.00023287,3]
[329531767,1718418658925,-500.0,0.00023287,3]
[329531768,1718418658938,-500.0,0.00023287,3]
[329531769,1718418658963,-500.0,0.00023287,3]
[329531770,1718418658975,-500.0,0.00023287,3]
[329531771,1718418658986,-500.0,0.00023287,3]
[329531772,1718418659002,-500.0,0.00023287,3]
[329531773,1718418659013,-500.0,0.00023287,3]
[329531774,1718418659024,-500.0,0.00023287,3]
[329531775,1718418659047,-500.0,0.00023287,3]
[329531776,1718418659059,-698.81,0.00023287,3]
[329531777,1718418659071,-751.33,0.00023287,3]
[329531778,1718418659083,-500.0,0.00023287,3]
[329531779,1718418659096,-500.0,0.00023287,3]
[329531780,1718418659108,-500.0,0.00023287,3]
[329531781,1718418659132,-685.95,0.00023287,3]
[329531782,1718418659159,-500.0,0.00023287,3]
[329531783,1718418659177,-500.0,0.00023287,3]
[329531784,1718418659196,-500.0,0.00023287,3]
[329531785,1718418659217,-500.0,0.00023287,3]
[329531786,1718418659232,-500.0,0.00023287,3]
[329531787,1718418659244,-165.85692214,0.00023287,3]
[329531788,1718418659257,-500.0,0.00023287,3]
[329531789,1718418659269,-500.0,0.00023287,3]
[329531790,1718418659285,-500.0,0.00023287,3]
[329531791,1718418659297,-500.0,0.00023287,3]
[329531792,1718418659312,-500.0,0.00023287,3]
[329531793,1718418659325,-690.91,0.00023287,3]
[329531794,1718418659337,-1023.41,0.00023287,3]
[329531795,1718418659348,-500.0,0.00023287,3]
[329531796,1718418659359,-500.0,0.00023287,3]
[329531797,1718418659370,-500.0,0.00023287,3]
[329531798,1718418659383,-500.0,0.00023287,3]
[329531799,1718418659405,-1528.25,0.00023287,3]
[329531800,1718418659422,-514.84,0.00023287,3]
[329531801,1718418659443,-1688.11215118,0.00023287,3]
[329531802,1718418659625,-448.01784882,0.00023287,3]
[329531803,1718418659637,-500.0,0.00023287,3]
[329531804,1718418659650,-1218.02,0.00023287,3]
[329531805,1718418659674,-500.0,0.00023287,3]
[329531806,1718418659699,-559.06,0.00023287,3]
[329531807,1718418659715,-473.47583227,0.00023287,3]
[329531808,1718418659729,-500.0,0.00023287,3]
[329531809,1718418659749,-500.0,0.00023287,3]
[329531810,1718418659760,-500.0,0.00023287,3]
[329531811,1718418659788,-500.0,0.00023287,3]
[329531812,1718418659826,-1699.59,0.00023287,3]
[329531813,1718418659844,-500.0,0.00023287,3]
[329531814,1718418659859,-530.11645005,0.00023287,3]
[329531815,1718418659870,-500.0,0.00023287,3]
[329531816,1718418659890,-614.49,0.00023287,3]
[329531817,1718418659902,-500.0,0.00023287,3]
[329531818,1718418659919,-1964.58,0.00023287,3]
[329531819,1718418659932,-266.74285774,0.00023287,3]
[329531820,1718418659951,-500.0,0.00023287,3]
[329531821,1718418659970,-500.0,0.00023287,3]
[329531822,1718418659981,-500.0,0.00023287,3]
[329531823,1718418659992,-500.0,0.00023287,3]
[329531824,1718418660005,-500.0,0.00023287,3]
[329531825,1718418660026,-585.57181521,0.00023287,3]
[329531826,1718418660038,-354.62486459,0.00023287,3]
[329531827,1718418660053,-611.88757807,0.00023287,3]
[329531828,1718418660065,-500.0,0.00023287,3]
[329531829,1718418660078,-500.0,0.00023287,3]
[329531830,1718418660096,-588.06,0.00023287,3]
[329531831,1718418660116,-500.0,0.00023287,3]
[329531832,1718418660132,-500.0,0.00023287,3]
[329531833,1718418660165,-500.0,0.00023287,3]
[329531834,1718418660176,-845.42,0.00023287,3]
[329531835,1718418660187,-500.0,0.00023287,3]
[329531836,1718418660200,-500.0,0.00023287,3]
[329531837,1718418660215,-500.0,0.00023287,3]
[329531838,1718418660226,-500.0,0.00023287,3]
[329531839,1718418660238,-500.0,0.00023287,3]
[329531840,1718418660272,-500.0,0.00023287,3]
[329531841,1718418660284,-500.0,0.00023287,3]
[329531842,1718418660309,-500.0,0.00023287,3]
[329531843,1718418660320,-500.0,0.00023287,3]
[329531844,1718418660331,-500.0,0.00023287,3]
[329531845,1718418660349,-1524.44,0.00023287,3]
[329531846,1718418660362,-500.0,0.00023287,3]
[329531847,1718418660379,-500.0,0.00023287,3]
[329531848,1718418660391,-500.0,0.00023287,3]
[329531849,1718418660403,-500.0,0.00023287,3]
[329531850,1718418660419,-545.14,0.00023287,3]
[329531851,1718418660430,-500.0,0.00023287,3]
[329531852,1718418660441,-1262.4,0.00023287,3]
[329531853,1718418660457,-686.01,0.00023287,3]
[329531854,1718418660513,-500.0,0.00023287,3]
[329531855,1718418660532,-583.54,0.00023287,3]
[329531856,1718418660575,-1611.11,0.00023287,3]
[329531857,1718418660587,-3695.75,0.00023287,3]
[329531858,1718418660607,-690.81,0.00023287,3]
[329531859,1718418660634,-869.82,0.00023287,3]
[329531860,1718418660645,-500.0,0.00023287,3]
[329531861,1718418660658,-500.0,0.00023287,3]
[329531862,1718418660680,-500.0,0.00023287,3]
[329531863,1718418660691,-500.0,0.00023287,3]
[329531864,1718418660702,-500.0,0.00023287,3]
[329531865,1718418660716,-500.0,0.00023287,3]
[329531866,1718418660728,-500.0,0.00023287,3]
[329531867,1718418660741,-500.0,0.00023287,3]
[329531868,1718418660752,-895.37,0.00023287,3]
[329531869,1718418660765,-500.0,0.00023287,3]
[329531870,1718418660779,-500.0,0.00023287,3]
[329531871,1718418660790,-827.21,0.00023287,3]
[329531872,1718418660803,-528.45,0.00023287,3]
[329531873,1718418660817,-500.0,0.00023287,3]
[329531874,1718418660828,-1182.73,0.00023287,3]
[329531875,1718418660852,-510.2349745,0.00023287,3]
[329531876,1718418660868,-3612.6750255,0.00023287,3]
[329531877,1718418660885,-857.07,0.00023287,3]
[329531878,1718418660897,-573.37972214,0.00023287,3]
[329531879,1718418660940,-840.7,0.00023287,3]
[329531880,1718418660951,-1225.11952525,0.00023287,2]
[329531881,1718418660965,-500.0,0.0002356,3]
[329531882,1718418660977,-168.68273102,0.0002356,3]
[329531883,1718418660988,-500.0,0.0002356,3]
[329531884,1718418660999,-500.0,0.0002356,3]
[329531885,1718418661011,-500.0,0.0002356,3]
[329531886,1718418661023,-500.0,0.0002356,3]
[329531887,1718418661035,-500.0,0.0002356,3]
[329531888,1718418661048,-500.0,0.0002356,3]
[329531889,1718418661068,-500.0,0.0002356,3]
[329531890,1718418661079,-500.0,0.0002356,3]
[329531891,1718418661090,-500.0,0.0002356,3]
[329531892,1718418661100,-500.0,0.0002356,3]
[329531893,1718418661112,-500.0,0.0002356,3]
[329531894,1718418661125,-500.0,0.0002356,3]
[329531895,1718418661141,-288.80191666,0.0002356,3]
[329531896,1718418661162,-211.19808334,0.0002356,3]
[329531897,1718418661174,-620.622692,0.0002356,3]
[329531898,1718418661186,-500.0,0.0002356,3]
[329531899,1718418661199,-500.0,0.0002356,3]
[329531900,1718418661209,-500.0,0.0002356,3]
[329531901,1718418661236,-500.0,0.0002356,3]
[329531902,1718418661247,-500.0,0.0002356,3]
[329531903,1718418661259,-500.0,0.0002356,3]
[329531904,1718418661284,-500.0,0.0002356,3]
[329531905,1718418661296,-500.0,0.0002356,3]
[329531906,1718418661309,-500.0,0.0002356,3]
[329531907,1718418661333,-500.0,0.0002356,3]
[329531908,1718418661352,-500.0,0.0002356,3]
[329531909,1718418661366,-500.0,0.0002356,3]
[329531910,1718418661383,-500.0,0.0002356,3]
[329531911,1718418661406,-821.30951346,0.0002356,2]
[329531912,1718418661419,-500.0,0.00023561,3]
[329531913,1718418661439,-356.59125326,0.00023561,3]
[329531914,1718418661453,-435.47026713,0.00023561,3]
[329531915,1718418661465,-212.756205,0.00023561,3]
[329531916,1718418661488,-500.0,0.00023561,3]
[329531917,1718418661501,-500.0,0.00023561,3]
[329531918,1718418661516,-500.0,0.00023561,3]
[329531919,1718418661527,-242.98182367,0.00023561,3]
[329531920,1718418661539,-500.0,0.00023561,3]
[329531921,1718418661550,-364.09579999,0.00023561,3]
[329531922,1718418661562,-500.0,0.00023561,3]
[329531923,1718418661573,-500.0,0.00023561,3]
[329531924,1718418661585,-343.84,0.00023561,3]
[329531925,1718418661602,-698.81,0.00023561,3]
[329531926,1718418661616,-751.33,0.00023561,3]
[329531927,1718418661629,-500.0,0.00023561,3]
[329531928,1718418661642,-500.0,0.00023561,3]
[329531929,1718418661654,-500.0,0.00023561,3]
[329531930,1718418661671,-685.95,0.00023561,3]
[329531931,1718418661688,-500.0,0.00023561,3]
[329531932,1718418661718,-500.0,0.00023561,3]
[329531933,1718418661730,-500.0,0.00023561,3]
[329531934,1718418661744,-500.0,0.00023561,3]
[329531935,1718418661758,-500.0,0.00023561,3]
[329531936,1718418661772,-500.0,0.00023561,3]
[329531937,1718418661787,-500.0,0.00023561,3]
[329531938,1718418661800,-500.0,0.00023561,3]
[329531939,1718418661816,-500.0,0.00023561,3]
[329531940,1718418661831,-500.0,0.00023561,3]
[329531941,1718418661843,-690.91,0.00023561,3]
[329531942,1718418661855,-1023.41,0.00023561,3]
[329531943,1718418661868,-500.0,0.00023561,3]
[329531944,1718418661887,-500.0,0.00023561,3]
[329531945,1718418661915,-500.0,0.00023561,3]
[329531946,1718418661937,-500.0,0.00023561,3]
[329531947,1718418661950,-1528.25,0.00023561,3]
[329531948,1718418661972,-514.84,0.00023561,3]
[329531949,1718418661984,-2136.13,0.00023561,3]
[329531950,1718418661999,-500.0,0.00023561,3]
[329531951,1718418662023,-1218.02,0.00023561,3]
[329531952,1718418662035,-500.0,0.00023561,3]
[329531953,1718418662057,-559.06,0.00023561,3]
[329531954,1718418662074,-500.0,0.00023561,3]
[329531955,1718418662099,-500.0,0.00023561,3]
[329531956,1718418662112,-500.0,0.00023561,3]
[329531957,1718418662128,-500.0,0.00023561,3]
[329531958,1718418662140,-1699.59,0.00023561,3]
[329531959,1718418662151,-500.0,0.00023561,3]
[329531960,1718418662166,-500.0,0.00023561,3]
[329531961,1718418662180,-500.0,0.00023561,3]
[329531962,1718418662195,-1964.58,0.00023561,3]
[329531963,1718418662225,-500.0,0.00023561,3]
[329531964,1718418662238,-500.0,0.00023561,3]
[329531965,1718418662250,-613.01960617,0.00023561,3]
[329531966,1718418662263,-500.0,0.00023561,3]
[329531967,1718418662279,-500.0,0.00023561,3]
[329531968,1718418662293,-500.0,0.00023561,3]
[329531969,1718418662305,-500.0,0.00023561,3]
[329531970,1718418662331,-588.06,0.00023561,3]
[329531971,1718418662351,-500.0,0.00023561,3]
[329531972,1718418662365,-500.0,0.00023561,3]
[329531973,1718418662378,-500.0,0.00023561,3]
[329531974,1718418662391,-845.42,0.00023561,3]
[329531975,1718418662420,-500.0,0.00023561,3]
[329531976,1718418662433,-500.0,0.00023561,3]
[329531977,1718418662445,-500.0,0.00023561,3]
[329531978,1718418662475,-500.0,0.00023561,3]
[329531979,1718418662490,-500.0,0.00023561,3]
[329531980,1718418662504,-500.0,0.00023561,3]
[329531981,1718418662537,-500.0,0.00023561,3]
[329531982,1718418662550,-500.0,0.00023561,3]
[329531983,1718418662567,-500.0,0.00023561,3]
[329531984,1718418662578,-500.0,0.00023561,3]
[329531985,1718418662590,-1524.44,0.00023561,3]
[329531986,1718418662604,-500.0,0.00023561,3]
[329531987,1718418662616,-520.36846922,0.00023561,3]
[329531988,1718418662627,-500.0,0.00023561,3]
[329531989,1718418662639,-500.0,0.00023561,3]
[329531990,1718418662652,-545.14,0.00023561,3]
[329531991,1718418662667,-500.0,0.00023561,3]
[329531992,1718418662691,-1262.4,0.00023561,3]
[329531993,1718418662703,-686.01,0.00023561,3]
[329531994,1718418662716,-500.0,0.00023561,3]
[329531995,1718418662753,-583.54,0.00023561,3]
[329531996,1718418662767,-1611.11,0.00023561,3]
[329531997,1718418662779,-3695.75,0.00023561,3]
[329531998,1718418662809,-690.81,0.00023561,3]
[329531999,1718418662821,-869.82,0.00023561,3]
[329532000,1718418662832,-500.0,0.00023561,3]
[329532001,1718418662849,-500.0,0.00023561,3]
[329532002,1718418662861,-500.0,0.00023561,3]
[329532003,1718418662874,-500.0,0.00023561,3]
[329532004,1718418662900,-500.0,0.00023561,3]
[329532005,1718418662929,-500.0,0.00023561,3]
[329532006,1718418662942,-500.0,0.00023561,3]
[329532007,1718418662955,-500.0,0.00023561,3]
[329532008,1718418662969,-895.37,0.00023561,3]
[329532009,1718418662981,-500.0,0.00023561,3]
[329532010,1718418662994,-500.0,0.00023561,3]
[329532011,1718418663007,-827.21,0.00023561,3]
[329532012,1718418663022,-528.45,0.00023561,3]
[329532013,1718418663046,-500.0,0.00023561,3]
[329532014,1718418663058,-1182.73,0.00023561,3]
[329532015,1718418663071,-4122.91,0.00023561,3]
[329532016,1718418663082,-857.07,0.00023561,3]
[329532017,1718418663096,-840.7,0.00023561,3]
[329532018,1718418663110,-273.71,0.0002376,2]
[329532019,1718418663122,-500.0,0.00023834,3]
[329532020,1718418663140,-500.0,0.00023834,3]
[329532021,1718418663152,-500.0,0.00023834,3]
[329532022,1718418663163,-500.0,0.00023834,3]
[329532023,1718418663179,-500.0,0.00023834,3]
[329532024,1718418663194,-500.0,0.00023834,3]
[329532025,1718418663207,-500.0,0.00023834,3]
[329532026,1718418663220,-500.0,0.00023834,3]
[329532027,1718418663232,-500.0,0.00023834,3]
[329532028,1718418663253,-500.0,0.00023834,3]
[329532029,1718418663265,-598.18693939,0.00023834,3]
[329532030,1718418663277,-500.0,0.00023834,3]
[329532031,1718418663298,-500.0,0.00023834,3]
[329532032,1718418663320,-500.0,0.00023834,3]
[329532033,1718418663335,-500.0,0.00023834,3]
[329532034,1718418663347,-500.0,0.00023834,3]
[329532035,1718418663358,-500.0,0.00023834,3]
[329532036,1718418663371,-500.0,0.00023834,3]
[329532037,1718418663384,-430.88721747,0.00023834,3]
[329532038,1718418663423,-500.0,0.00023834,3]
[329532039,1718418663436,-500.0,0.00023834,3]
[329532040,1718418663451,-500.0,0.00023834,3]
[329532041,1718418663463,-500.0,0.00023834,3]
[329532042,1718418663476,-500.0,0.00023834,3]
[329532043,1718418663502,-500.0,0.00023834,3]
[329532044,1718418663514,-500.0,0.00023834,3]
[329532045,1718418663530,-500.0,0.00023835,3]
[329532046,1718418663543,-500.0,0.00023835,3]
[329532047,1718418663562,-500.0,0.00023835,3]
[329532048,1718418663573,-500.0,0.00023835,3]
[329532049,1718418663585,-500.0,0.00023835,3]
[329532050,1718418663599,-500.0,0.00023835,3]
[329532051,1718418663616,-500.0,0.00023835,3]
[329532052,1718418663633,-698.81,0.00023835,3]
[329532053,1718418663645,-751.33,0.00023835,3]
[329532054,1718418663657,-500.0,0.00023835,3]
[329532055,1718418663672,-500.0,0.00023835,3]
[329532056,1718418663683,-500.0,0.00023835,3]
[329532057,1718418663694,-685.95,0.00023835,3]
[329532058,1718418663704,-500.0,0.00023835,3]
[329532059,1718418663737,-500.0,0.00023835,3]
[329532060,1718418663750,-500.0,0.00023835,3]
[329532061,1718418663772,-158.69876676,0.00023835,3]
[329532062,1718418663783,-500.0,0.00023835,3]
[329532063,1718418663802,-500.0,0.00023835,3]
[329532064,1718418663826,-500.0,0.00023835,3]
[329532065,1718418663860,-500.0,0.00023835,3]
[329532066,1718418663873,-500.0,0.00023835,3]
[329532067,1718418663884,-500.0,0.00023835,3]
[329532068,1718418663895,-690.91,0.00023835,3]
[329532069,1718418663909,-1023.41,0.00023835,3]
[329532070,1718418663926,-500.0,0.00023835,3]
[329532071,1718418663939,-500.0,0.00023835,3]
[329532072,1718418663950,-500.0,0.00023835,3]
[329532073,1718418663961,-500.0,0.00023835,3]
[329532074,1718418663976,-514.84,0.00023835,3]
[329532075,1718418663989,-1528.25,0.00023835,3]
[329532076,1718418664009,-2136.13,0.00023835,3]
[329532077,1718418664031,-1218.02,0.00023835,3]
[329532078,1718418664051,-500.0,0.00023835,3]
[329532079,1718418664066,-559.06,0.00023835,3]
[329532080,1718418664085,-500.0,0.00023835,3]
[329532081,1718418664102,-500.0,0.00023835,3]
[329532082,1718418664126,-500.0,0.00023835,3]
[329532083,1718418664143,-500.0,0.00023835,3]
[329532084,1718418664155,-1699.59,0.00023835,3]
[329532085,1718418664172,-500.0,0.00023835,3]
[329532086,1718418664194,-500.0,0.00023835,3]
[329532087,1718418664205,-500.0,0.00023835,3]
[329532088,1718418664225,-1964.58,0.00023835,3]
[329532089,1718418664237,-500.0,0.00023835,3]
[329532090,1718418664260,-500.0,0.00023835,3]
[329532091,1718418664272,-500.0,0.00023835,3]
[329532092,1718418664285,-500.0,0.00023835,3]
[329532093,1718418664308,-500.0,0.00023835,3]
[329532094,1718418664329,-500.0,0.00023835,3]
[329532095,1718418664345,-588.06,0.00023835,3]
[329532096,1718418664358,-500.0,0.00023835,3]
[329532097,1718418664382,-500.0,0.00023835,3]
[329532098,1718418664410,-500.0,0.00023835,3]
[329532099,1718418664424,-845.42,0.00023835,3]
[329532100,1718418664441,-500.0,0.00023835,3]
[329532101,1718418664452,-500.0,0.00023835,3]
[329532102,1718418664466,-500.0,0.00023835,3]
[329532103,1718418664479,-500.0,0.00023835,3]
[329532104,1718418664504,-500.0,0.00023835,3]
[329532105,1718418664516,-500.0,0.00023835,3]
[329532106,1718418664529,-500.0,0.00023835,3]
[329532107,1718418664541,-500.0,0.00023835,3]
[329532108,1718418664557,-500.0,0.00023835,3]
[329532109,1718418664573,-500.0,0.00023835,3]
[329532110,1718418664585,-1524.44,0.00023835,3]
[329532111,1718418664600,-500.0,0.00023835,3]